bitfinex-derivatives/quotes_BTCF0:USTF0_20241021
["timestamp","ask_amount","ask_price","bid_price","bid_amount"]
[1729492368767,0.0424035,69196.0,69195.0,0.18147916]
[1729492369463,0.05137588,69196.0,69195.0,0.18147916]
[1729492369667,0.08677938,69196.0,69195.0,0.18147916]
[1729492376474,0.0424035,69196.0,69195.0,0.18147916]
[1729492377273,0.007,69196.0,69195.0,0.18147916]
[1729492377666,0.0424035,69196.0,69195.0,0.18147916]
[1729492380164,0.0424035,69196.0,69195.0,0.08687916]
[1729492380365,0.0424035,69196.0,69195.0,0.18147916]
[1729492380565,0.0424035,69196.0,69192.0,0.43308]
[1729492380566,0.04240496,69196.0,69192.0,0.43308]
[1729492380776,0.03540496,69195.0,69187.0,0.072285]
[1729492381069,0.07978588,69194.0,69187.0,0.072285]
[1729492381272,0.072283,69190.0,69187.0,0.072285]
[1729492381471,0.07978588,69189.0,69187.0,0.072285]
[1729492382977,0.07978588,69189.0,69182.0,0.37728834]
[1729492382978,0.072284,69188.0,69185.0,0.0946]
[1729492383175,0.04438241,69187.0,69183.0,0.07229]
[1729492383358,0.04438241,69186.0,69183.0,0.07229]
[1729492383564,0.04438241,69186.0,69182.0,0.3608]
[1729492383565,0.072289,69184.0,69182.0,0.3608]
[1729492383874,0.11088737,69183.0,69182.0,0.433091]
[1729492385369,0.11088737,69183.0,69181.0,0.00216772]
[1729492385370,0.11388737,69183.0,69181.0,0.00216772]
[1729492385571,0.15207837,69182.0,69181.0,0.00216772]
[1729492386068,0.11667341,69182.0,69181.0,0.00216772]
[1729492387565,0.11967341,69182.0,69181.0,0.00216772]
[1729492388570,0.12267341,69182.0,69181.0,0.00216772]
[1729492389973,0.12267341,69182.0,69171.0,0.072302]
[1729492389974,0.072297,69176.0,69171.0,0.072302]
[1729492390172,0.14858983,69175.0,69171.0,0.072302]
[1729492390363,0.04439183,69174.0,69171.0,0.072302]
[1729492390867,0.11669083,69174.0,69171.0,0.072302]
[1729492391065,0.04439183,69173.0,69171.0,0.072302]
[1729492391669,0.04439153,69172.0,69171.0,0.072302]
[1729492392272,0.04439153,69172.0,69171.0,0.166902]
[1729492392273,0.07980637,69172.0,69171.0,0.166902]
[1729492392668,0.04439153,69172.0,69171.0,0.166902]
[1729492393177,0.04739153,69172.0,69171.0,0.166902]
[1729492393379,0.04738998,69172.0,69171.0,0.166902]
[1729492393876,0.04438998,69172.0,69171.0,0.166902]
[1729492394175,0.04838998,69172.0,69171.0,0.166902]
[1729492394776,0.04738998,69172.0,69171.0,0.166902]
[1729492396964,0.08280368,69172.0,69171.0,0.166902]
[1729492397279,0.08280368,69172.0,69171.0,0.18168752]
[1729492397780,0.04738998,69172.0,69171.0,0.18168752]
[1729492398073,0.08280361,69172.0,69171.0,0.18168752]
[1729492398275,0.08280221,69172.0,69171.0,0.18168752]
[1729492399171,0.04738858,69172.0,69171.0,0.18168752]
[1729492399372,0.003,69172.0,69171.0,0.18168752]
[1729492399570,0.03841363,69172.0,69171.0,0.18168752]
[1729492399777,0.003,69172.0,69171.0,0.18168752]
[1729492402973,0.003,69172.0,69171.0,0.08708752]
[1729492403172,0.003,69172.0,69171.0,0.166902]
[1729492403387,0.003,69172.0,69171.0,0.072302]
[1729492404872,0.003,69172.0,69171.0,0.433102]
[1729492405076,0.001,69172.0,69171.0,0.433102]
[1729492405383,0.3608,69195.0,69172.0,0.072301]
[1729492405578,0.3608,69195.0,69180.0,0.3608]
[1729492405579,0.104782,69191.0,69180.0,0.3608]
[1729492405775,0.07979725,69190.0,69188.0,0.072284]
[1729492405970,0.03541143,69189.0,69188.0,0.072284]
[1729492406174,0.07979689,69190.0,69184.0,0.072289]
[1729492406380,0.07979689,69189.0,69184.0,0.072289]
[1729492406581,0.07979689,69188.0,69184.0,0.072289]
[1729492406780,0.07979689,69187.0,69184.0,0.072289]
[1729492406979,0.07979689,69186.0,69184.0,0.072289]
[1729492407285,0.07979689,69185.0,69184.0,0.072289]
[1729492407678,0.072283,69190.0,69185.0,0.072287]
[1729492407882,0.07979665,69189.0,69185.0,0.072287]
[1729492408090,0.003,69186.0,69185.0,0.072287]
[1729492408675,0.07979667,69186.0,69185.0,0.072287]
[1729492409785,0.08279667,69186.0,69185.0,0.072287]
[1729492411687,0.08579667,69186.0,69185.0,0.072287]
[1729492413476,0.16489809,69186.0,69185.0,0.072287]
[1729492413678,0.08579667,69186.0,69185.0,0.072287]
[1729492416287,0.04141117,69186.0,69185.0,0.072287]
[1729492416791,0.3608,69202.0,69185.0,0.4336]
[1729492416984,0.3608,69202.0,69200.0,0.072272]
[1729492416985,0.03540636,69201.0,69200.0,0.072272]
[1729492417891,0.0305,69202.0,69201.0,0.072271]
[1729492418088,0.07787764,69202.0,69201.0,0.072271]
[1729492418291,0.11328254,69202.0,69201.0,0.072271]
[1729492418479,0.0689049,69202.0,69201.0,0.072271]
[1729492418682,0.0659049,69202.0,69201.0,0.072271]
[1729492419282,0.0689049,69202.0,69201.0,0.064271]
[1729492421690,0.0335,69202.0,69201.0,0.064271]
[1729492422490,0.11328064,69202.0,69201.0,0.064271]
[1729492423288,0.11328064,69202.0,69199.0,0.45728]
[1729492423289,0.11328064,69202.0,69199.0,0.36272]
[1729492423597,0.15205164,69201.0,69199.0,0.45728]
[1729492423798,0.07978064,69200.0,69199.0,0.45536]
[1729492424691,0.07978064,69200.0,69199.0,0.3608]
[1729492424892,0.15205264,69200.0,69199.0,0.3608]
[1729492425288,0.15305264,69200.0,69199.0,0.3608]
[1729492425991,0.15605264,69200.0,69199.0,0.3608]
[1729492427496,0.15605264,69200.0,69198.0,0.072273]
[1729492427687,0.07978064,69199.0,69196.0,0.3608]
[1729492427892,0.07978064,69198.0,69188.0,0.00192]
[1729492428094,0.2308513,69189.0,69186.0,0.433086]
[1729492428290,0.07978064,69188.0,69186.0,0.433086]
[1729492428799,0.04437574,69188.0,69186.0,0.433086]
[1729492429092,0.072283,69189.0,69186.0,0.433086]
[1729492429287,0.3638,69199.0,69186.0,0.3608]
[1729492429488,0.035408,69198.0,69197.0,0.072275]
[1729492429688,0.3608,69199.0,69197.0,0.072275]
[1729492430396,0.0305,69202.0,69198.0,0.3608]
[1729492430595,0.0326,69207.0,69199.0,0.072273]
[1729492431197,0.0326,69207.0,69206.0,0.072266]
[1729492431396,0.07977551,69209.0,69208.0,0.072264]
[1729492431596,0.07977544,69209.0,69208.0,0.072264]
[1729492431792,0.07977544,69209.0,69200.0,0.09456]
[1729492432096,0.072262,69210.0,69206.0,0.072265]
[1729492432097,0.07977544,69208.0,69206.0,0.072265]
[1729492432397,0.07977544,69207.0,69206.0,0.072265]
[1729492433091,0.04437369,69207.0,69206.0,0.072265]
[1729492433492,0.08277544,69208.0,69206.0,0.072265]
[1729492433698,0.07977544,69207.0,69206.0,0.072265]
[1729492434195,0.07977544,69207.0,69200.0,0.09456]
[1729492434196,0.15204044,69207.0,69201.0,0.07227]
[1729492434398,0.07977544,69206.0,69203.0,0.072268]
[1729492434792,0.07977544,69206.0,69203.0,0.064268]
[1729492435096,0.15204144,69206.0,69203.0,0.064268]
[1729492435292,0.07977544,69205.0,69203.0,0.064268]
[1729492435602,0.15204244,69205.0,69203.0,0.064268]
[1729492435795,0.07977544,69204.0,69203.0,0.064268]
[1729492436094,0.07977544,69204.0,69198.0,0.09456]
[1729492436297,0.07977544,69204.0,69199.0,0.072272]
[1729492437493,0.07227,69202.0,69199.0,0.072272]
[1729492437692,0.07227,69202.0,69192.0,0.00216764]
[1729492437693,0.39620175,69201.0,69192.0,0.00216764]
[1729492437901,0.072278,69195.0,69192.0,0.00216764]
[1729492438094,0.07978639,69194.0,69192.0,0.00216764]
[1729492438288,0.07978639,69194.0,69193.0,0.072279]
[1729492438494,0.072279,69193.0,69192.0,0.00216764]
[1729492438691,0.1076849,69193.0,69192.0,0.00216764]
[1729492439803,0.1086849,69193.0,69192.0,0.00216764]
[1729492440210,0.1116849,69193.0,69192.0,0.00216764]
[1729492440504,0.15606844,69193.0,69192.0,0.00216764]
[1729492442907,0.5452449,69193.0,69192.0,0.00216764]
[1729492443210,0.1116849,69193.0,69192.0,0.00216764]
[1729492443505,0.0394059,69193.0,69192.0,0.07228]
[1729492443894,0.08378805,69193.0,69192.0,0.07228]
[1729492445304,0.08378805,69193.0,69192.0,0.10338]
[1729492449013,0.0394059,69193.0,69192.0,0.10338]
[1729492450413,0.004,69193.0,69192.0,0.10338]
[1729492451114,0.001,69193.0,69192.0,0.10338]
[1729492451313,0.003,69193.0,69192.0,0.10338]
[1729492451510,0.004,69193.0,69192.0,0.10338]
[1729492451810,0.03940688,69193.0,69192.0,0.10338]
[1729492452009,0.004,69193.0,69192.0,0.10338]
[1729492452412,0.004,69193.0,69192.0,0.07228]
[1729492454012,0.0394065,69193.0,69192.0,0.07228]
[1729492456806,0.004,69193.0,69192.0,0.07228]
[1729492459112,0.08378274,69193.0,69192.0,0.07228]
[1729492463412,0.08378321,69193.0,69192.0,0.07228]
[1729492463612,0.08378321,69193.0,69192.0,0.17156]
[1729492464218,0.0394052,69193.0,69192.0,0.17156]
[1729492464422,0.08378354,69193.0,69192.0,0.17156]
[1729492467012,0.004,69193.0,69192.0,0.17156]
[1729492467723,0.03940522,69193.0,69192.0,0.17156]
[1729492468529,0.004,69193.0,69192.0,0.17156]
[1729492469628,0.03940522,69193.0,69192.0,0.17156]
[1729492473227,0.03940522,69193.0,69192.0,0.53236]
[1729492474130,0.03940522,69193.0,69192.0,0.17156]
[1729492474326,0.03940522,69193.0,69192.0,0.53236]
[1729492474327,0.004,69193.0,69192.0,0.53236]
[1729492474826,0.004,69193.0,69192.0,0.07228]
[1729492475033,0.004,69193.0,69192.0,0.53236]
[1729492475233,0.004,69193.0,69192.0,0.17156]
[1729492475436,0.004,69193.0,69192.0,0.53236]
[1729492478730,0.03940422,69193.0,69192.0,0.53236]
[1729492481034,0.03940422,69193.0,69192.0,0.43308]
[1729492481226,0.03940422,69193.0,69192.0,0.53232]
[1729492482132,0.08378182,69193.0,69192.0,0.53232]
[1729492483139,0.08378182,69193.0,69192.0,0.531]
[1729492485633,0.08378157,69193.0,69192.0,0.531]
[1729492487137,0.05185488,69203.0,69192.0,0.45872]
[1729492487440,0.031,69208.0,69198.0,0.3608]
[1729492487640,0.031,69208.0,69206.0,0.072265]
[1729492488246,0.031,69208.0,69198.0,0.3608]
[1729492488247,0.031,69208.0,69207.0,0.072265]
[1729492489039,0.034,69208.0,69207.0,0.072265]
[1729492489647,0.0669,69208.0,69207.0,0.072265]
[1729492490130,0.139164,69208.0,69207.0,0.072265]
[1729492490536,0.136164,69208.0,69207.0,0.072265]
[1729492490738,0.138164,69208.0,69207.0,0.072265]
[1729492491242,0.0659,69208.0,69207.0,0.072265]
[1729492492243,0.11027495,69208.0,69207.0,0.072265]
[1729492493040,0.0659,69208.0,69207.0,0.072265]
[1729492493745,0.4267,69208.0,69207.0,0.072265]
[1729492495446,0.498964,69208.0,69207.0,0.072265]
[1729492495747,0.54333946,69208.0,69207.0,0.072265]
[1729492496150,0.47107546,69208.0,69183.0,0.3608]
[1729492496348,0.072275,69198.0,69195.0,0.072276]
[1729492496656,0.1093801,69197.0,69184.0,0.09792]
[1729492496837,0.0321,69196.0,69195.0,0.072277]
[1729492497043,0.0764801,69196.0,69195.0,0.064277]
[1729492498052,0.0794801,69196.0,69195.0,0.064277]
[1729492498250,0.0824801,69196.0,69195.0,0.064277]
[1729492500647,0.006,69196.0,69195.0,0.064277]
[1729492501552,0.006,69196.0,69195.0,0.425077]
[1729492504355,0.05037711,69196.0,69195.0,0.425077]
[1729492504557,0.006,69196.0,69195.0,0.425077]
[1729492511456,0.05037598,69196.0,69195.0,0.425077]
[1729492514662,0.05037652,69196.0,69195.0,0.425077]
[1729492515059,0.05037652,69196.0,69181.0,0.00216782]
[1729492515060,0.48393687,69196.0,69181.0,0.00216782]
[1729492515261,0.18803876,69195.0,69181.0,0.07445982]
[1729492515562,0.18803876,69195.0,69183.0,0.07229]
[1729492515563,0.15899715,69188.0,69183.0,0.07229]
[1729492515759,0.20337631,69187.0,69183.0,0.07229]
[1729492515961,0.14366072,69195.0,69183.0,0.07229]
[1729492515962,0.20337631,69186.0,69183.0,0.07229]
[1729492516158,0.04437916,69185.0,69183.0,0.07229]
[1729492516357,0.04437916,69185.0,69181.0,0.00216782]
[1729492516561,0.04437916,69185.0,69184.0,0.072289]
[1729492516758,0.04437916,69186.0,69184.0,0.072289]
[1729492516961,0.04437916,69185.0,69184.0,0.072289]
[1729492517355,0.04737916,69185.0,69184.0,0.072289]
[1729492517753,0.84182545,69185.0,69181.0,0.00216782]
[1729492518059,0.072291,69182.0,69181.0,0.00216782]
[1729492518360,0.11667893,69182.0,69181.0,0.00216782]
[1729492518559,0.04438881,69182.0,69173.0,0.3608]
[1729492518859,0.072297,69176.0,69173.0,0.3608]
[1729492519062,0.04438881,69175.0,69173.0,0.3608]
[1729492519265,0.072299,69174.0,69173.0,0.3608]
[1729492519457,0.04439125,69174.0,69167.0,0.3608]
[1729492519654,0.3608,69178.0,69164.0,0.072309]
[1729492519655,0.3608,69171.0,69164.0,0.072309]
[1729492519856,0.072303,69170.0,69164.0,0.072309]
[1729492521256,0.072305,69169.0,69164.0,0.083309]
[1729492521757,0.032,69168.0,69164.0,0.083309]
[1729492522264,0.032,69168.0,69164.0,0.011]
[1729492522265,0.0624,69168.0,69164.0,0.011]
[1729492522463,0.072308,69166.0,69164.0,0.011]
[1729492522667,0.072308,69166.0,69164.0,0.016]
[1729492522970,0.032,69168.0,69165.0,0.072308]
[1729492523264,0.001,69170.0,69165.0,0.072308]
[1729492523457,0.001,69168.0,69165.0,0.072308]
[1729492523662,0.002,69166.0,69165.0,0.072308]
[1729492524071,0.001,69168.0,69165.0,0.072308]
[1729492524254,0.004,69168.0,69165.0,0.072308]
[1729492524767,0.002,69166.0,69165.0,0.072308]
[1729492525463,0.002,69166.0,69159.0,0.36296861]
[1729492526065,0.004,69166.0,69159.0,0.36296861]
[1729492526365,0.07231,69164.0,69160.0,0.072314]
[1729492527559,0.072312,69162.0,69159.0,0.36296861]
[1729492529264,0.072312,69162.0,69159.0,0.00216861]
[1729492529464,0.0629,69163.0,69159.0,0.00216861]
[1729492529465,0.072313,69161.0,69159.0,0.00216861]
[1729492530669,0.072313,69161.0,69159.0,0.00316861]
[1729492532570,0.072314,69160.0,69159.0,0.00316861]
[1729492533762,0.072314,69160.0,69159.0,0.00516861]
[1729492538880,0.072314,69160.0,69159.0,0.003]
[1729492560993,0.0021689,69177.0,69159.0,0.003]
[1729492561186,0.0021689,69177.0,69170.0,0.072303]
[1729492561187,0.0723,69173.0,69170.0,0.072303]
[1729492561390,0.0723,69173.0,69165.0,0.3608]
[1729492561693,0.072297,69176.0,69172.0,0.072301]
[1729492561884,0.072297,69176.0,69173.0,0.0325]
[1729492562083,0.0021689,69177.0,69174.0,0.072299]
[1729492562283,0.0021689,69177.0,69176.0,0.072297]
[1729492563491,0.0041689,69177.0,69176.0,0.072297]
[1729492564084,0.0041689,69177.0,69173.0,0.39522]
[1729492564085,0.074296,69177.0,69173.0,0.39522]
[1729492564287,0.074296,69177.0,69166.0,0.0324]
[1729492564288,0.004,69177.0,69166.0,0.0324]
[1729492564490,0.3608,69172.0,69166.0,0.0324]
[1729492564791,0.072303,69170.0,69166.0,0.0324]
[1729492564990,0.072303,69170.0,69167.0,0.072306]
[1729492565592,0.072303,69170.0,69168.0,0.072305]
[1729492565787,0.004,69177.0,69176.0,0.072297]
[1729492565989,0.004,69177.0,69176.0,0.433097]
[1729492566188,0.076297,69177.0,69169.0,0.46]
[1729492566488,0.074297,69177.0,69173.0,0.0723]
[1729492567294,0.074297,69177.0,69169.0,0.46]
[1729492567478,0.076297,69177.0,69175.0,0.072297]
[1729492568782,0.074297,69177.0,69175.0,0.072297]
[1729492568994,0.076297,69177.0,69175.0,0.072297]
[1729492569697,0.076297,69177.0,69176.0,0.072297]
[1729492571190,0.004,69177.0,69176.0,0.072297]
[1729492576489,0.002,69177.0,69176.0,0.072297]
[1729492576793,0.004,69177.0,69176.0,0.072297]
[1729492585185,0.004,69177.0,69171.0,0.072302]
[1729492585386,0.072304,69169.0,69167.0,0.072306]
[1729492585598,0.3608,69173.0,69166.0,0.0475664]
[1729492585796,0.072301,69172.0,69171.0,0.072302]
[1729492585998,0.072297,69176.0,69166.0,0.0324]
[1729492586196,0.072297,69176.0,69174.0,0.072299]
[1729492586400,0.072297,69176.0,69166.0,0.0324]
[1729492586595,0.072297,69176.0,69167.0,0.072306]
[1729492586901,0.002,69172.0,69167.0,0.3608]
[1729492587205,0.002,69172.0,69171.0,0.072302]
[1729492589403,0.004,69172.0,69171.0,0.072302]
[1729492589605,0.072306,69168.0,69167.0,0.072306]
[1729492589803,0.11670269,69168.0,69167.0,0.072306]
[1729492591897,0.12070269,69168.0,69167.0,0.072306]
[1729492593401,0.11870269,69168.0,69167.0,0.072306]
[1729492593600,0.12070269,69168.0,69167.0,0.072306]
[1729492594002,0.11870269,69168.0,69167.0,0.072306]
[1729492594206,0.076306,69168.0,69167.0,0.072306]
[1729492595103,0.004,69168.0,69162.0,0.01485103]
[1729492595300,0.072309,69165.0,69164.0,0.07231]
[1729492597508,0.3608,69166.0,69145.0,0.40400611]
[1729492597707,0.072316,69159.0,69156.0,0.072318]
[1729492598214,0.072316,69159.0,69150.0,0.1008]
[1729492598506,0.072316,69159.0,69158.0,0.072316]
[1729492598911,0.004,69165.0,69150.0,0.1008]
[1729492598912,0.002,69165.0,69156.0,0.003]
[1729492599113,0.002,69165.0,69164.0,0.07231]
[1729492599306,0.01473409,69179.0,69168.0,0.072305]
[1729492599511,0.072301,69172.0,69162.0,0.0319]
[1729492599712,0.072301,69172.0,69169.0,0.072304]
[1729492600206,0.072301,69172.0,69171.0,0.072302]
[1729492601204,0.074301,69172.0,69171.0,0.072302]
[1729492601700,0.072301,69172.0,69171.0,0.072302]
[1729492601903,0.12069495,69172.0,69171.0,0.072302]
[1729492602713,0.072306,69168.0,69166.0,0.072307]
[1729492602918,0.04839395,69172.0,69160.0,0.3938]
[1729492602919,0.072306,69167.0,69165.0,0.072308]
[1729492603398,0.072307,69166.0,69165.0,0.072308]
[1729492603909,0.07231,69164.0,69160.0,0.072313]
[1729492604101,0.072311,69163.0,69160.0,0.072313]
[1729492604507,0.04440011,69162.0,69157.0,0.00216872]
[1729492604814,0.072316,69158.0,69157.0,0.00216872]
[1729492605008,0.04440053,69158.0,69157.0,0.07448572]
[1729492605210,0.04440053,69161.0,69157.0,0.00216872]
[1729492605508,0.04440197,69160.0,69159.0,0.072314]
[1729492605914,0.04440119,69160.0,69159.0,0.072314]
[1729492606216,0.072312,69162.0,69159.0,0.072314]
[1729492606507,0.04440092,69161.0,69160.0,0.072314]
[1729492608014,0.11671392,69161.0,69160.0,0.073314]
[1729492608811,0.072313,69161.0,69160.0,0.073314]
[1729492611917,0.072313,69161.0,69160.0,0.001]
[1729492612607,0.133113,69161.0,69160.0,0.001]
[1729492613315,0.133113,69161.0,69143.0,0.072331]
[1729492613316,0.072326,69148.0,69143.0,0.072331]
[1729492613506,0.072326,69148.0,69146.0,0.072328]
[1729492614723,0.073326,69148.0,69146.0,0.086328]
[1729492615613,0.072327,69147.0,69146.0,0.099328]
[1729492615805,0.001,69148.0,69147.0,0.072327]
[1729492617517,0.3608,69156.0,69147.0,0.072327]
[1729492617518,0.072325,69149.0,69147.0,0.072327]
[1729492618313,0.001,69148.0,69147.0,0.013]
[1729492618611,0.073326,69148.0,69147.0,0.026]
[1729492618918,0.072326,69148.0,69147.0,0.026]
[1729492619312,0.072326,69148.0,69147.0,0.013]
[1729492619517,0.072326,69148.0,69147.0,0.025]
[1729492620415,0.072326,69148.0,69147.0,0.012]
[1729492620615,0.073326,69148.0,69147.0,0.026]
[1729492621913,0.073326,69148.0,69147.0,0.014]
[1729492622121,0.073326,69148.0,69147.0,0.027]
[1729492623923,0.14924046,69148.0,69138.0,0.072336]
[1729492624117,0.072336,69139.0,69138.0,0.072336]
[1729492624423,0.072338,69137.0,69136.0,0.00216903]
[1729492625923,0.072338,69137.0,69136.0,0.01616903]
[1729492627630,0.073338,69137.0,69136.0,0.01616903]
[1729492633037,0.001,69137.0,69136.0,0.086339]
[1729492653057,0.001,69137.0,69136.0,0.187739]
[1729492656453,0.3608,69148.0,69136.0,0.54932]
[1729492656654,0.0324,69152.0,69151.0,0.072323]
[1729492659059,0.0324,69152.0,69151.0,0.0872207]
[1729492659260,0.0334,69152.0,69151.0,0.0882207]
[1729492659466,0.0334,69152.0,69151.0,0.073323]
[1729492660659,0.0334,69152.0,69151.0,0.077323]
[1729492661456,0.0334,69152.0,69151.0,0.0917689]
[1729492662763,0.0334,69152.0,69151.0,0.077323]
[1729492668253,0.105722,69152.0,69151.0,0.077323]
[1729492672159,0.105722,69152.0,69151.0,0.005]
[1729492676966,0.15013286,69152.0,69151.0,0.005]
[1729492684782,0.15013358,69152.0,69151.0,0.005]
[1729492684965,0.105722,69152.0,69151.0,0.005]
[1729492686277,0.466522,69152.0,69151.0,0.005]
[1729492691373,0.105722,69152.0,69151.0,0.005]
[1729492691580,0.466522,69152.0,69151.0,0.005]
[1729492691968,0.51093344,69152.0,69151.0,0.005]
[1729492692376,0.47853344,69152.0,69151.0,0.005]
[1729492694481,0.40621144,69152.0,69151.0,0.005]
[1729492694681,0.40621144,69152.0,69151.0,0.077323]
[1729492694989,0.3618,69152.0,69151.0,0.077323]
[1729492696676,0.3618,69152.0,69151.0,0.005]
[1729492696876,0.434122,69152.0,69151.0,0.005]
[1729492703694,0.867962,69152.0,69151.0,0.004]
[1729492703898,0.94487314,69152.0,69140.0,0.4242]
[1729492704202,0.072334,69141.0,69140.0,0.0331]
[1729492705277,0.072334,69141.0,69140.0,0.0371]
[1729492705989,0.072334,69141.0,69140.0,0.0331]
[1729492706194,0.072334,69141.0,69140.0,0.0421]
[1729492706195,0.073334,69141.0,69140.0,0.0421]
[1729492707080,0.002,69141.0,69140.0,0.115435]
[1729492712992,0.002,69141.0,69140.0,0.082335]
[1729492715188,0.0464129,69141.0,69140.0,0.082335]
[1729492719097,0.04641446,69141.0,69140.0,0.082335]
[1729492722297,0.002,69141.0,69140.0,0.082335]
[1729492729507,0.074334,69141.0,69140.0,0.082335]
[1729492730005,0.11874865,69141.0,69140.0,0.082335]
[1729492731307,0.11874947,69141.0,69140.0,0.01]
[1729492732094,0.17064862,69141.0,69140.0,0.01]
[1729492733309,0.11874947,69141.0,69140.0,0.01]
[1729492733505,0.17064864,69141.0,69140.0,0.01]
[1729492734695,0.11874947,69141.0,69140.0,0.01]
[1729492737312,0.074334,69141.0,69140.0,0.01]
[1729492743310,0.11874954,69141.0,69140.0,0.01]
[1729492744016,0.074334,69141.0,69140.0,0.01]
[1729492744205,0.11875078,69141.0,69140.0,0.01]
[1729492745504,0.04641678,69141.0,69131.0,0.08679314]
[1729492745711,0.04441678,69140.0,69131.0,0.072343]
[1729492745905,0.04441678,69140.0,69128.0,0.0611]
[1729492745906,0.07234,69135.0,69132.0,0.072343]
[1729492746221,0.04441678,69134.0,69132.0,0.072343]
[1729492746408,0.07234,69135.0,69132.0,0.072343]
[1729492746709,0.04441776,69134.0,69132.0,0.072343]
[1729492747015,0.072341,69134.0,69132.0,0.072343]
[1729492747513,0.072341,69134.0,69132.0,0.078343]
[1729492748305,0.073341,69134.0,69132.0,0.078343]
[1729492748506,0.074341,69134.0,69132.0,0.078343]
[1729492749016,0.002,69134.0,69133.0,0.072342]
[1729492749510,0.04641743,69134.0,69133.0,0.072342]
[1729492751312,0.002,69134.0,69133.0,0.072342]
[1729492751910,0.04641742,69134.0,69133.0,0.072342]
[1729492752310,0.002,69134.0,69133.0,0.072342]
[1729492764423,0.074341,69134.0,69133.0,0.072342]
[1729492767326,0.11875919,69134.0,69133.0,0.072342]
[1729492768826,0.04641819,69134.0,69133.0,0.072342]
[1729492770920,0.04641806,69134.0,69133.0,0.072342]
[1729492772221,0.04641807,69134.0,69133.0,0.072342]
[1729492774336,0.002,69134.0,69133.0,0.072342]
[1729492775033,0.002,69134.0,69128.0,0.07603605]
[1729492775338,0.072345,69131.0,69128.0,0.07603605]
[1729492775633,0.072345,69130.0,69128.0,0.07603605]
[1729492776025,0.072345,69130.0,69128.0,0.14838205]
[1729492778732,0.073345,69130.0,69128.0,0.14838205]
[1729492779134,0.074345,69130.0,69128.0,0.14838205]
[1729492782426,0.04441833,69129.0,69128.0,0.14838205]
[1729492782837,0.04441833,69129.0,69128.0,0.11798205]
[1729492783640,0.04541833,69129.0,69128.0,0.11798205]
[1729492784542,0.04641833,69129.0,69128.0,0.11798205]
[1729492787334,0.04641857,69129.0,69128.0,0.11798205]
[1729492789339,0.002,69129.0,69128.0,0.11798205]
[1729492790135,0.002,69129.0,69128.0,0.08728205]
[1729492804657,0.04641984,69129.0,69128.0,0.08728205]
[1729492805653,0.002,69129.0,69128.0,0.08728205]
[1729492805848,0.3608,69144.0,69128.0,0.01493605]
[1729492806048,0.04441721,69143.0,69142.0,0.072333]
[1729492806742,0.0444126,69143.0,69141.0,0.072334]
[1729492806951,0.05189577,69154.0,69148.0,0.072325]
[1729492807150,0.04441262,69153.0,69148.0,0.433125]
[1729492807352,0.04441262,69152.0,69148.0,0.433125]
[1729492807544,0.04441262,69151.0,69149.0,0.072325]
[1729492807745,0.04441262,69150.0,69149.0,0.072325]
[1729492808348,0.072319,69155.0,69149.0,0.072325]
[1729492808547,0.04440694,69154.0,69149.0,0.072325]
[1729492808749,0.001,69151.0,69149.0,0.073325]
[1729492809057,0.04440694,69150.0,69149.0,0.073325]
[1729492809252,0.04440694,69150.0,69149.0,0.072325]
[1729492809253,0.001,69150.0,69149.0,0.072325]
[1729492809557,0.002,69150.0,69149.0,0.073325]
[1729492810654,0.04640694,69150.0,69149.0,0.073325]
[1729492810847,0.04540694,69150.0,69149.0,0.073325]
[1729492811049,0.001,69151.0,69149.0,0.073325]
[1729492811648,0.001,69150.0,69149.0,0.073325]
[1729492811849,0.002,69150.0,69149.0,0.073325]
[1729492812354,0.001,69150.0,69149.0,0.073325]
[1729492812653,0.001,69151.0,69149.0,0.073325]
[1729492812853,0.866964,69150.0,69149.0,0.001]
[1729492813158,0.866964,69150.0,69125.0,0.3608]
[1729492813159,0.072325,69149.0,69128.0,0.072347]
[1729492813359,0.3608,69136.0,69128.0,0.072347]
[1729492813555,0.0302,69135.0,69125.0,0.3608]
[1729492813745,0.072348,69127.0,69119.0,0.072356]
[1729492813950,0.072348,69127.0,69118.0,0.3608]
[1729492814255,0.072348,69127.0,69120.0,0.01456211]
[1729492814457,0.072348,69127.0,69118.0,0.3608]
[1729492814949,0.073348,69127.0,69118.0,0.3608]
[1729492815460,0.072348,69127.0,69118.0,0.3608]
[1729492815655,0.073348,69127.0,69118.0,0.3608]
[1729492815864,0.074348,69127.0,69118.0,0.3608]
[1729492816965,0.074348,69127.0,69118.0,0.433158]
[1729492820157,0.074348,69127.0,69123.0,0.3608]
[1729492820359,0.002,69127.0,69126.0,0.072349]
[1729492839673,0.002,69127.0,69126.0,0.433149]
[1729492839976,0.074348,69127.0,69126.0,0.072349]
[1729492841177,0.002,69127.0,69126.0,0.072349]
[1729492841874,0.04642209,69127.0,69126.0,0.072349]
[1729492842665,0.002,69127.0,69126.0,0.072349]
[1729492847082,0.3628,69127.0,69120.0,0.01485926]
[1729492847285,0.072352,69124.0,69123.0,0.072352]
[1729492849479,0.073352,69124.0,69123.0,0.072352]
[1729492849882,0.001,69124.0,69123.0,0.072352]
[1729492850475,0.002,69124.0,69123.0,0.072352]
[1729492855588,0.072353,69123.0,69119.0,0.072356]
[1729492855988,0.072354,69122.0,69119.0,0.072356]
[1729492856486,0.002,69124.0,69123.0,0.072352]
[1729492856880,0.074351,69124.0,69123.0,0.072352]
[1729492857188,0.073351,69124.0,69123.0,0.072352]
[1729492857490,0.001,69122.0,69121.0,0.072355]
[1729492857688,0.04542497,69122.0,69121.0,0.072355]
[1729492859785,0.04642497,69122.0,69121.0,0.072355]
[1729492861786,0.002,69122.0,69121.0,0.072355]
[1729492864179,0.002,69122.0,69121.0,0.105455]